bitfinex/quotes_BTCUSD_20250414
["timestamp","ask_amount","ask_price","bid_price","bid_amount"]
[1744617926112,0.0001,84677.0,84676.0,0.18035054]
[1744617927517,0.0021,84677.0,84676.0,0.18035054]
[1744617927721,0.0001,84677.0,84676.0,0.18035054]
[1744617928968,0.0001,84677.0,84676.0,0.18135054]
[1744617932286,0.0001,84677.0,84676.0,0.060509]
[1744617942976,0.0001,84677.0,84676.0,0.18135054]
[1744617943179,0.0001,84677.0,84676.0,0.18371232]
[1744617943425,0.0001,84677.0,84676.0,0.18135054]
[1744617954509,0.0001,84677.0,84676.0,0.060509]
[1744617954716,0.0001,84677.0,84676.0,0.012809]
[1744617961178,0.0001,84677.0,84676.0,0.001]
[1744617961386,0.189053,84677.0,84676.0,0.001]
[1744617961590,0.02222732,84677.0,84676.0,0.001]
[1744617962109,0.03403632,84677.0,84674.0,0.01181]
[1744617962304,0.01181,84672.0,84655.0,0.189]
[1744617962540,0.01181,84672.0,84667.0,0.188973]
[1744617962740,0.01181,84672.0,84662.0,0.188986]
[1744617962946,0.03393732,84671.0,84667.0,0.01181]
[1744617963585,0.02212732,84670.0,84667.0,0.01181]
[1744617963711,0.02212732,84669.0,84667.0,0.01181]
[1744617964378,0.02212732,84668.0,84667.0,0.01181]
[1744617964577,0.02212732,84668.0,84667.0,0.200783]
[1744617964791,0.02212732,84668.0,84667.0,0.201783]
[1744617965081,0.02212732,84668.0,84667.0,0.251483]
[1744617965383,0.0001,84677.0,84675.0,0.188957]
[1744617965518,0.02210094,84676.0,84675.0,0.188957]
[1744617965721,0.02210094,84676.0,84674.0,0.01181]
[1744617965924,0.18896,84674.0,84668.0,0.01181]
[1744617966157,0.01181,84672.0,84669.0,0.01181]
[1744617966611,0.03391094,84673.0,84670.0,0.01181]
[1744617966815,0.02210094,84671.0,84670.0,0.01181]
[1744617967687,0.011811,84666.0,84662.0,0.011811]
[1744617968054,0.01181,84667.0,84663.0,0.200793]
[1744617968226,0.01181,84669.0,84665.0,0.011811]
[1744617968409,0.02210094,84666.0,84665.0,0.011811]
[1744617968612,0.02210094,84666.0,84665.0,0.200791]
[1744617969237,0.05751,84670.0,84667.0,0.01181]
[1744617969765,0.02208969,84669.0,84667.0,0.01181]
[1744617970175,0.02208969,84668.0,84667.0,0.01181]
[1744617971265,0.02608969,84668.0,84667.0,0.01181]
[1744617972599,0.02608969,84668.0,84667.0,0.13501365]
[1744617972801,0.004,84668.0,84667.0,0.1956545]
[1744617973351,0.004,84668.0,84667.0,0.19329239]
[1744617973554,0.004,84668.0,84667.0,0.19565408]
[1744617973790,0.0001,84677.0,84674.0,0.01181]
[1744617974031,0.0001,84677.0,84675.0,0.12084154]
[1744617974488,0.0001,84677.0,84675.0,0.188957]
[1744617974691,0.001,84668.0,84667.0,0.188975]
[1744617974817,0.011809,84675.0,84671.0,0.01181]
[1744617975024,0.011909,84677.0,84673.0,0.01181]
[1744617975220,0.0021,84677.0,84674.0,0.01181]
[1744617975426,0.02208336,84676.0,84674.0,0.200767]
[1744617975849,0.02208336,84675.0,84674.0,0.200767]
[1744617977153,0.02208336,84675.0,84674.0,0.41690854]
[1744617977557,0.0021,84677.0,84676.0,0.188955]
[1744617977761,0.0001,84677.0,84676.0,0.31215821]
[1744617977924,0.0001,84677.0,84676.0,0.30979654]
[1744617979276,5e-05,84682.0,84681.0,0.20348485]
[1744617979496,5e-05,84682.0,84681.0,0.46752639]
[1744617979981,5.5e-07,84691.0,84690.0,0.20346485]
[1744617980213,5.5e-07,84691.0,84690.0,0.37486745]
[1744617980452,5.5e-07,84691.0,84690.0,0.37250639]
[1744617980683,5.5e-07,84691.0,84690.0,0.38420692]
[1744617981195,5.5e-07,84691.0,84690.0,0.32146607]
[1744617981446,5.5e-07,84691.0,84690.0,0.188924]
[1744617981756,0.00200055,84691.0,84690.0,0.30976554]
[1744617982500,5.5e-07,84691.0,84690.0,0.37260639]
[1744617983633,0.002,84709.0,84708.0,0.188884]
[1744617983925,0.00206542,84709.0,84708.0,0.31208659]
[1744617984197,4.2e-07,84709.0,84708.0,0.35502554]
[1744617985124,0.00100042,84709.0,84708.0,0.35502554]
[1744617986534,0.00100042,84709.0,84708.0,0.35702554]
[1744617986819,0.00100042,84709.0,84708.0,0.35902554]
[1744617990905,0.00100042,84709.0,84708.0,0.31372554]
[1744617996045,0.00100042,84709.0,84708.0,0.36282554]
[1744618005356,0.00100042,84709.0,84708.0,0.50590554]
[1744618005828,0.00100042,84709.0,84708.0,0.36282554]
[1744618006032,0.00100042,84709.0,84708.0,0.50590554]
[1744618016934,0.00100042,84709.0,84708.0,0.50582554]
[1744618022891,0.00100042,84709.0,84708.0,0.52036639]
[1744618028610,0.00100042,84709.0,84708.0,0.45672554]
[1744618029078,0.00100042,84709.0,84708.0,0.335884]
[1744618029204,0.00100042,84709.0,84708.0,0.192884]
[1744618030703,0.00100042,84709.0,84708.0,0.31372554]
[1744618034807,0.00100042,84709.0,84708.0,0.36232554]
[1744618035534,0.00100042,84709.0,84708.0,0.37686639]
[1744618036649,4.2e-07,84709.0,84708.0,0.37686639]
[1744618036856,6.2e-07,84715.0,84713.0,0.35454085]
[1744618037060,4.677e-05,84715.0,84714.0,0.71335239]
[1744618037266,7.7e-07,84715.0,84714.0,0.75905239]
[1744618037414,3.7e-07,84733.0,84732.0,0.54337085]
[1744618037619,3.7e-07,84733.0,84732.0,0.80721239]
[1744618037817,4.653e-05,84733.0,84732.0,0.80721239]
[1744618038420,4.653e-05,84733.0,84732.0,0.81458486]
[1744618038983,4.653e-05,84733.0,84732.0,0.80404401]
[1744618039112,4.653e-05,84733.0,84732.0,0.66104401]
[1744618039530,4.653e-05,84733.0,84732.0,0.66404401]
[1744618039727,4.653e-05,84733.0,84732.0,0.19583]
[1744618039952,4.653e-05,84733.0,84732.0,0.007]
[1744618040169,0.00671973,84733.0,84732.0,0.004]
[1744618040367,0.00671973,84733.0,84732.0,0.006]
[1744618040925,0.24464773,84733.0,84732.0,0.002]
[1744618041149,0.24464773,84733.0,84732.0,0.003]
[1744618041554,0.011802,84725.0,84721.0,0.011803]
[1744618041982,0.01846494,84724.0,84720.0,0.011803]
[1744618042241,0.011804,84717.0,84709.0,0.200685]
[1744618042429,0.011805,84704.0,84694.0,0.188914]
[1744618042638,0.011806,84701.0,84697.0,0.011806]
[1744618042844,0.011806,84698.0,84693.0,0.200724]
[1744618043020,0.011806,84698.0,84693.0,0.011807]
[1744618043182,0.011806,84698.0,84692.0,0.12149873]
[1744618043183,0.188917,84693.0,84692.0,0.12149873]
[1744618043384,0.41295954,84693.0,84692.0,0.12149873]
[1744618043607,0.75295954,84693.0,84692.0,0.12149873]
[1744618043814,0.75295954,84693.0,84692.0,0.12154488]
[1744618044012,0.188931,84687.0,84680.0,0.17120276]
[1744618044251,0.30977254,84687.0,84686.0,0.13813216]
[1744618044457,0.64977254,84687.0,84686.0,0.13813216]
[1744618044859,0.30977254,84687.0,84686.0,0.13813216]
[1744618045266,0.30977254,84687.0,84686.0,6.542e-05]
[1744618048433,0.12084154,84687.0,84686.0,6.542e-05]
[1744618049095,0.011807,84692.0,84686.0,6.542e-05]
[1744618049244,0.143,84691.0,84688.0,0.011808]
[1744618049443,0.143,84691.0,84689.0,0.188926]
[1744618049733,1.116047,84695.0,84692.0,0.188918]
[1744618050013,1.116047,84695.0,84689.0,0.200732]
[1744618050212,0.143,84694.0,84690.0,0.011807]
[1744618050425,0.143,84694.0,84691.0,0.200729]
[1744618051515,0.143,84694.0,84690.0,0.011807]
[1744618051729,0.154807,84694.0,84690.0,0.011807]
[1744618052528,0.143,84694.0,84691.0,0.200729]
[1744618053873,0.143,84694.0,84691.0,0.188922]
[1744618054379,0.143,84694.0,84691.0,0.200729]
[1744618054698,0.143,84694.0,84691.0,0.188922]
[1744618055519,0.14304,84693.0,84691.0,0.188922]
[1744618059237,0.154847,84693.0,84689.0,0.18892]
[1744618059375,0.188929,84688.0,84686.0,6.542e-05]
[1744618060522,0.011807,84689.0,84686.0,6.542e-05]
[1744618062319,0.188928,84688.0,84686.0,6.542e-05]
[1744618063081,0.011807,84689.0,84686.0,6.542e-05]
[1744618063725,0.011807,84690.0,84686.0,6.542e-05]
[1744618063906,0.200733,84689.0,84686.0,6.542e-05]
[1744618067304,0.011807,84689.0,84686.0,6.542e-05]
[1744618067841,0.200735,84689.0,84686.0,6.542e-05]
[1744618069405,0.188931,84687.0,84686.0,6.542e-05]
[1744618069518,0.30977254,84687.0,84686.0,6.542e-05]
[1744618070541,0.72261668,84687.0,84686.0,6.542e-05]
[1744618071476,0.72461668,84687.0,84686.0,6.542e-05]
[1744618071878,1.23294516,84687.0,84686.0,6.542e-05]
[1744618072928,1.23094516,84687.0,84686.0,6.542e-05]
[1744618073081,1.23494516,84687.0,84686.0,6.542e-05]
[1744618073283,1.24194516,84687.0,84686.0,6.542e-05]
[1744618073478,1.12121668,84687.0,84686.0,6.542e-05]
[1744618076404,1.13012406,84687.0,84686.0,6.542e-05]
[1744618076623,1.12021668,84687.0,84686.0,6.542e-05]
[1744618077631,1.11321668,84687.0,84686.0,6.542e-05]
[1744618077831,1.25225668,84687.0,84686.0,6.542e-05]
[1744618077995,1.25625668,84687.0,84686.0,6.542e-05]
[1744618078346,1.26125668,84687.0,84686.0,6.542e-05]
[1744618078499,1.27229176,84687.0,84686.0,6.542e-05]
[1744618082362,1.22569176,84687.0,84686.0,6.542e-05]
[1744618082553,1.2477611,84687.0,84686.0,6.542e-05]
[1744618083310,1.32915385,84687.0,84686.0,6.542e-05]
[1744618085087,1.30708451,84687.0,84686.0,6.542e-05]
[1744618085288,1.22669176,84687.0,84686.0,6.542e-05]
[1744618085713,1.28753261,84687.0,84686.0,6.542e-05]
[1744618085923,1.46823735,84687.0,84686.0,4.2e-07]
[1744618086050,0.54449785,84675.0,84674.0,6.2e-07]
[1744618086258,0.77027447,84675.0,84674.0,0.00013917]
[1744618087261,0.77927447,84675.0,84674.0,0.00113917]
[1744618087946,0.78427447,84675.0,84674.0,0.00113917]
[1744618088587,0.78427447,84675.0,84674.0,1.7e-07]
[1744618088790,0.90500295,84675.0,84674.0,1.7e-07]
[1744618089524,0.189,84656.0,84655.0,0.0008444]
[1744618089749,0.86576568,84656.0,84655.0,0.0008444]
[1744618089951,0.75595922,84656.0,84655.0,0.0008444]
[1744618090531,0.75595922,84656.0,84655.0,0.0501444]
[1744618090737,0.75795922,84656.0,84655.0,0.0501444]
[1744618090933,0.76095922,84656.0,84655.0,0.0501444]
[1744618091961,0.61787922,84656.0,84655.0,0.0501444]
[1744618092158,0.42887922,84656.0,84655.0,0.0501444]
[1744618092961,0.42687922,84656.0,84655.0,0.0501444]
[1744618093219,0.41584414,84656.0,84655.0,0.0501444]
[1744618093455,0.41284414,84656.0,84655.0,0.0511444]
[1744618093931,0.14308,84659.0,84656.0,0.200812]
[1744618094860,0.14308,84659.0,84658.0,0.188995]
[1744618095365,0.011812,84658.0,84655.0,0.0511444]
[1744618095587,0.14408,84659.0,84656.0,0.004]
[1744618095810,0.14408,84659.0,84658.0,0.188995]
[1744618096338,0.14408,84659.0,84658.0,0.191995]
[1744618096593,0.14308,84659.0,84658.0,0.188995]
[1744618096821,0.14408,84659.0,84658.0,0.188995]
[1744618097529,0.188995,84658.0,84655.0,0.0501444]
[1744618097776,0.200807,84658.0,84655.0,0.0501444]
[1744618098443,0.011812,84658.0,84655.0,0.0619564]
[1744618098672,0.14408,84659.0,84656.0,0.011812]
[1744618098915,0.14408,84659.0,84658.0,0.001]
[1744618099115,0.14308,84659.0,84657.0,0.188997]
[1744618100271,0.15411102,84659.0,84658.0,0.001]
[1744618100494,0.15411102,84659.0,84657.0,0.188997]
[1744618101029,0.01103102,84658.0,84657.0,0.188997]
[1744618101913,0.01103102,84658.0,84657.0,0.189997]
[1744618102106,0.01103102,84658.0,84657.0,0.188997]
[1744618102507,0.01103102,84658.0,84657.0,0.189997]
[1744618103421,0.01103102,84658.0,84657.0,0.001]
[1744618104831,0.01103102,84658.0,84657.0,0.189997]
[1744618105038,0.01103102,84663.0,84660.0,0.011811]
[1744618106299,0.001,84663.0,84660.0,0.011811]
[1744618107067,0.011811,84662.0,84657.0,0.200809]
[1744618107244,0.011811,84662.0,84655.0,0.0501444]
[1744618107245,0.189,84656.0,84655.0,0.0501444]
[1744618107403,0.200808,84658.0,84655.0,0.0501444]
[1744618107596,0.189,84656.0,84655.0,0.0008444]
[1744618107987,0.20004045,84656.0,84655.0,0.0008444]
[1744618108582,0.20004045,84656.0,84655.0,0.0028444]
[1744618108958,0.189,84656.0,84655.0,0.0008444]
[1744618109174,0.30984154,84656.0,84655.0,0.0028444]
[1744618109359,1.13982223,84656.0,84655.0,0.0028444]
[1744618110061,1.14867974,84656.0,84655.0,0.0008444]
[1744618110277,1.14967974,84656.0,84655.0,0.0008444]
[1744618110698,1.15167974,84656.0,84655.0,0.0008444]
[1744618111297,1.16071848,84656.0,84655.0,0.0008444]
[1744618111887,1.15971848,84656.0,84655.0,0.0008444]
[1744618112082,1.07654319,84656.0,84655.0,0.0018444]
[1744618112645,1.08054319,84656.0,84655.0,0.0018444]
[1744618114640,1.09157778,84656.0,84655.0,0.0018444]
[1744618117514,1.10711863,84656.0,84655.0,0.0018444]
[1744618118377,1.10211863,84656.0,84655.0,0.0008444]
[1744618118573,1.21884711,84656.0,84655.0,0.0008444]
[1744618118800,1.22684711,84656.0,84655.0,0.0018444]
[1744618118970,1.23184711,84656.0,84655.0,0.0018444]
[1744618119372,1.11111863,84656.0,84655.0,0.0018444]
[1744618121075,1.09657778,84656.0,84655.0,0.0018444]
[1744618121968,1.11111863,84656.0,84655.0,0.0018444]
[1744618122178,0.35554085,84652.0,84651.0,4e-07]
[1744618122478,0.57638239,84652.0,84651.0,4e-07]
[1744618122658,0.69711087,84652.0,84651.0,4e-07]
[1744618123468,0.70111087,84652.0,84651.0,4e-07]
[1744618124364,0.54456285,84646.0,84645.0,0.0008038]
[1744618124536,1.91600439,84646.0,84645.0,0.0008038]
[1744618125711,1.91600439,84646.0,84645.0,0.0009424]
[1744618125837,2.03673287,84646.0,84645.0,0.0009424]
[1744618126034,2.04273287,84646.0,84645.0,0.0019424]
[1744618126247,2.45557701,84646.0,84645.0,0.0019424]
[1744618126446,2.46057701,84646.0,84645.0,0.0019424]
[1744618127504,2.32430768,84646.0,84645.0,0.0019424]
[1744618128330,2.32530768,84646.0,84645.0,0.0019424]
[1744618129556,2.32430768,84646.0,84645.0,0.0019424]
[1744618132050,2.33532592,84646.0,84645.0,0.0019424]
[1744618136072,2.33356592,84646.0,84645.0,0.0019424]
[1744618139275,2.4542944,84646.0,84645.0,0.0019424]
[1744618139493,2.33356592,84646.0,84645.0,0.0019424]
[1744618144219,2.35566822,84646.0,84645.0,0.0019424]
[1744618146344,0.189029,84643.0,84634.0,0.0487446]
[1744618146540,0.30987054,84643.0,84634.0,0.0487446]
[1744618146899,0.33197284,84643.0,84634.0,0.0487446]
[1744618147660,0.34699108,84643.0,84634.0,0.0487446]
[1744618148006,0.34699108,84643.0,84642.0,0.0018434]
[1744618148223,0.35199108,84643.0,84642.0,0.0018434]
[1744618149579,0.76483522,84643.0,84642.0,0.0018434]
[1744618152477,0.90803522,84643.0,84642.0,0.0018434]
[1744618155428,0.88593292,84643.0,84642.0,0.0018434]
[1744618155976,0.87491468,84643.0,84642.0,0.0018434]
[1744618156581,0.90812301,84643.0,84642.0,0.0018434]
[1744618158080,0.97779934,84643.0,84642.0,0.0018434]
[1744618158978,0.90812301,84643.0,84642.0,0.0018434]
[1744618160982,0.90912301,84643.0,84642.0,0.0018434]
[1744618161188,1.24912301,84643.0,84642.0,0.0018434]
[1744618161389,1.25528417,84643.0,84642.0,0.0018434]
[1744618161726,1.36414142,84643.0,84642.0,0.0018434]
[1744618161921,1.39989306,84643.0,84642.0,0.0018434]
[1744618162149,1.41096577,84643.0,84642.0,0.0018434]
[1744618162327,1.4331112,84643.0,84642.0,0.0018434]
[1744618163529,1.41096577,84643.0,84642.0,0.0018434]
[1744618165322,1.35542148,84643.0,84642.0,0.0018434]
[1744618167355,1.31966984,84643.0,84642.0,0.0018434]
[1744618167764,1.31866984,84643.0,84642.0,0.0018434]
[1744618169335,1.34080073,84643.0,84642.0,0.0018434]
[1744618175995,1.3075924,84643.0,84642.0,0.0478434]
[1744618176207,1.34078936,84643.0,84642.0,0.0018434]
[1744618176427,1.43073195,84643.0,84642.0,0.0018434]
[1744618177017,1.41965924,84643.0,84642.0,0.0018434]
[1744618178414,1.30758576,84643.0,84642.0,0.0018434]
[1744618180035,1.2743888,84643.0,84642.0,0.0018434]
[1744618183307,0.6170343,84643.0,84642.0,0.0018434]
[1744618183540,0.75403314,84643.0,84642.0,0.0478434]
[1744618183800,0.15216,84643.0,84642.0,0.0972434]
[1744618184304,0.14816,84643.0,84642.0,0.0972434]
[1744618184987,0.14316,84643.0,84642.0,0.0962434]
[1744618185217,0.14316,84643.0,84642.0,0.0972434]
[1744618185411,0.14716,84643.0,84642.0,0.0972434]
[1744618185667,0.15016,84643.0,84642.0,0.0972434]
[1744618185878,0.007,84643.0,84642.0,0.0972434]
[1744618186053,1.117453,84646.0,84642.0,0.0502434]
[1744618186283,1.117453,84646.0,84643.0,0.0452]
[1744618186817,1.10564,84646.0,84643.0,0.0452]
[1744618187053,1.117453,84646.0,84643.0,0.0452]
[1744618187282,1.119453,84646.0,84643.0,0.0452]
[1744618187506,1.10764,84646.0,84643.0,0.234227]
[1744618187726,1.10764,84646.0,84644.0,0.0482]
[1744618188395,1.10864,84646.0,84644.0,0.0482]
[1744618188622,1.10564,84646.0,84644.0,0.0482]
[1744618189093,1.10764,84646.0,84644.0,0.0482]
[1744618189530,1.10564,84646.0,84644.0,0.0482]
[1744618189765,1.10664,84646.0,84644.0,0.0482]
[1744618190434,1.295663,84646.0,84644.0,0.0482]
[1744618190613,0.189029,84643.0,84642.0,0.0008434]
[1744618190827,0.30987054,84643.0,84642.0,0.0008434]
[1744618191778,0.31087054,84643.0,84642.0,0.0008434]
[1744618192079,0.31087054,84643.0,84642.0,0.0018434]
[1744618192429,0.32190968,84643.0,84642.0,0.0018434]
[1744618193168,0.38157736,84643.0,84642.0,0.0018434]
[1744618193390,0.32190968,84643.0,84642.0,0.0018434]
[1744618193588,0.73475382,84643.0,84642.0,0.0018434]
[1744618194837,0.72371468,84643.0,84642.0,0.0018434]
[1744618197767,0.73475865,84643.0,84642.0,0.0018434]
[1744618198659,0.72371468,84643.0,84642.0,0.0018434]
[1744618199948,0.41384414,84643.0,84642.0,0.0942434]
[1744618200543,0.41384414,84643.0,84642.0,0.0479434]
[1744618200708,0.53468568,84643.0,84642.0,0.0018434]
[1744618201630,0.56782393,84643.0,84642.0,0.0018434]
[1744618203179,0.44698239,84643.0,84642.0,0.0018434]
[1744618204656,0.56782393,84643.0,84642.0,0.0018434]
[1744618204839,0.44698239,84643.0,84642.0,0.0018434]
[1744618210500,0.56782393,84643.0,84642.0,0.0018434]
[1744618218594,0.71090393,84643.0,84642.0,0.0018434]
[1744618221094,1.05090393,84643.0,84642.0,0.0018434]
[1744618221470,1.08409119,84643.0,84642.0,0.0018434]
[1744618221674,1.08409119,84643.0,84642.0,0.0008434]
[1744618222032,1.08309119,84643.0,84642.0,0.0008434]
[1744618223095,1.08309119,84643.0,84642.0,0.0018434]
[1744618223301,1.08309119,84643.0,84642.0,0.0008434]
[1744618223455,1.04990393,84643.0,84642.0,0.0008434]
[1744618223641,1.05390393,84643.0,84642.0,0.0018434]
[1744618224116,1.05490393,84643.0,84642.0,0.0018434]
[1744618224778,1.05390393,84643.0,84642.0,0.0018434]
[1744618225271,1.05690393,84643.0,84642.0,0.0018434]
[1744618226434,1.05690393,84643.0,84642.0,0.0001434]
[1744618227128,1.03481176,84643.0,84642.0,0.0001434]
[1744618228543,1.02376568,84643.0,84642.0,0.0001434]
[1744618228862,1.07948346,84643.0,84642.0,0.0001434]
[1744618231063,1.02376568,84643.0,84642.0,0.0001434]
[1744618231288,1.12152625,84643.0,84642.0,0.0001434]
[1744618231648,1.02376568,84643.0,84642.0,0.0001434]
[1744618232145,1.03482239,84643.0,84642.0,0.0001434]
[1744618234576,1.02376568,84643.0,84642.0,0.0001434]
[1744618234999,2.12948568,84643.0,84642.0,0.0001434]
[1744618238426,2.14054238,84643.0,84642.0,0.0001434]
[1744618239257,2.12948568,84643.0,84642.0,0.0001434]
[1744618252256,2.12944568,84643.0,84642.0,0.0001434]
[1744618257089,2.21034882,84643.0,84642.0,0.0001434]
[1744618257331,2.12944568,84643.0,84642.0,0.0001434]
[1744618257647,1.02372568,84643.0,84642.0,0.0001434]
[1744618259029,1.05692515,84643.0,84642.0,0.0001434]
[1744618261856,1.02372568,84643.0,84642.0,0.0001434]
[1744618269513,1.1020293,84643.0,84642.0,0.0001434]
[1744618269712,1.23383007,84643.0,84642.0,0.0001434]
[1744618269941,1.23383007,84643.0,84634.0,0.0008446]
[1744618270141,0.529047,84635.0,84634.0,0.0008446]
[1744618270346,0.64988854,84635.0,84634.0,0.0008446]
[1744618270550,0.68309067,84635.0,84634.0,0.0008446]
[1744618270709,0.6892558,84635.0,84634.0,0.0008446]
[1744618270913,0.72246431,84635.0,84634.0,0.0008446]
[1744618271344,0.68926218,84635.0,84634.0,0.0008446]
[1744618271750,0.66712596,84635.0,84634.0,0.0008446]
[1744618272731,0.66912596,84635.0,84634.0,0.0008446]
[1744618273703,0.67112596,84635.0,84634.0,0.0008446]
[1744618275815,1.0839701,84635.0,84634.0,0.0008446]
[1744618276806,1.07289781,84635.0,84634.0,0.0008446]
[1744618277709,0.88385081,84635.0,84634.0,0.0008446]
[1744618278009,1.07289781,84635.0,84634.0,0.0464446]
[1744618278206,0.76300927,84635.0,84634.0,0.0464446]
[1744618278410,0.90596927,84635.0,84634.0,0.0464446]
[1744618279189,0.89980414,84635.0,84634.0,0.0464446]
[1744618279412,0.75684414,84635.0,84634.0,0.0464446]
[1744618279601,0.89980414,84635.0,84634.0,0.0464446]
[1744618279981,0.89580414,84635.0,84634.0,0.0464446]
[1744618280533,0.89680414,84635.0,84634.0,0.0464446]
[1744618280697,0.89780414,84635.0,84634.0,0.0464446]
[1744618282851,0.75484414,84635.0,84634.0,0.0464446]
[1744618283041,0.89780414,84635.0,84634.0,0.0464446]
[1744618297824,1.08685114,84635.0,84634.0,0.0464446]
[1744618303756,1.08685114,84635.0,84634.0,0.0008446]
[1744618313394,1.20769268,84635.0,84634.0,0.0008446]
[1744618314549,1.08685114,84635.0,84634.0,0.0008446]
[1744618318483,1.20769268,84635.0,84634.0,0.0008446]
[1744618318682,1.42312116,84635.0,84634.0,0.0008446]
[1744618319207,1.42927996,84635.0,84634.0,0.0008446]
[1744618319834,1.30855148,84635.0,84634.0,0.0008446]
[1744618319998,1.34175683,84635.0,84634.0,0.0008446]
[1744618320404,0.011816,84626.0,84600.0,0.0008446]
[1744618320726,0.46084154,84622.0,84621.0,0.0033056]
[1744618320959,0.64991754,84622.0,84621.0,0.0033056]
[1744618321133,0.67205661,84622.0,84621.0,0.0033056]
[1744618321337,0.70526738,84622.0,84621.0,0.0033056]
[1744618321908,0.67205661,84622.0,84621.0,0.0033056]
[1744618322148,0.64991754,84622.0,84621.0,0.0033056]
[1744618322367,0.66098708,84622.0,84621.0,0.0033056]
[1744618323123,0.66969172,84622.0,84621.0,0.0033056]
[1744618323330,0.67369172,84622.0,84621.0,0.0043056]
[1744618323699,0.73866736,84622.0,84621.0,0.0043056]
[1744618323863,0.67669172,84622.0,84621.0,0.0043056]
[1744618325200,0.70383693,84622.0,84621.0,0.0043056]
[1744618327950,1.24800688,84592.0,84591.0,0.00204621]
[1744618328305,1.26254773,84592.0,84591.0,0.00204621]
[1744618328679,0.18919,84571.0,84570.0,0.0008446]
[1744618328792,0.45279154,84571.0,84570.0,0.00089082]
[1744618330076,0.45379154,84571.0,84570.0,0.00089082]
[1744618330662,1.20663568,84571.0,84570.0,0.00089082]
[1744618331226,0.52921,84562.0,84561.0,0.002]
[1744618331378,0.65005154,84562.0,84561.0,0.00204622]
[1744618331695,0.66209818,84562.0,84561.0,0.00204622]
[1744618332056,1.07494232,84562.0,84561.0,0.00204622]
[1744618332257,0.011828,84542.0,84536.0,0.0008446]
[1744618332489,0.529266,84537.0,84536.0,0.00091023]
[1744618332657,0.65010754,84537.0,84536.0,0.00091023]
[1744618334000,0.77083602,84537.0,84536.0,0.00191023]
[1744618334544,0.65900239,84537.0,84536.0,0.00191023]
[1744618334881,0.66100239,84537.0,84536.0,0.00191023]
[1744618335102,0.54381785,84532.0,84520.0,0.0125912]
[1744618335312,0.66465939,84532.0,84531.0,0.00246239]
[1744618335518,0.54384285,84521.0,84520.0,0.0125912]
[1744618335863,1.2184583,84521.0,84520.0,0.01263741]
[1744618336192,1.35012912,84521.0,84520.0,0.01263741]
[1744618336878,1.07201979,84521.0,84520.0,0.01263741]
[1744618337052,1.20391745,84521.0,84520.0,0.01263741]
[1744618337280,1.20991745,84521.0,84520.0,0.01263741]
[1744618338821,1.21491745,84521.0,84520.0,0.01263741]
[1744618339443,1.2294583,84521.0,84520.0,0.01263741]
[1744618339642,1.2294583,84521.0,84502.0,0.0004224]
[1744618339643,0.529342,84503.0,84502.0,0.0004224]
[1744618339887,0.529342,84503.0,84501.0,0.002]
[1744618339888,0.45554085,84502.0,84501.0,0.002]
[1744618340070,0.45554085,84502.0,84485.0,0.0004224]
[1744618340071,0.52938,84486.0,84485.0,0.0004224]
[1744618340272,1.20399545,84486.0,84485.0,0.00056113]
[1744618340508,1.21596252,84486.0,84485.0,0.00056113]
[1744618340803,1.22489635,84486.0,84485.0,0.00056113]
[1744618340946,1.34562483,84486.0,84485.0,0.00056113]
[1744618341148,0.629411,84472.0,84451.0,0.0004224]
[1744618341496,2.2828073,84472.0,84471.0,4.626e-05]
[1744618341668,2.2838073,84472.0,84471.0,2.6e-07]
[1744618341878,2.31515588,84472.0,84471.0,2.6e-07]
[1744618342223,0.529456,84452.0,84451.0,0.0004224]
[1744618342393,1.20411145,84452.0,84451.0,0.00088496]
[1744618343581,1.20511145,84452.0,84451.0,0.00088496]
[1744618343824,1.20511145,84452.0,84436.0,0.0250342]
[1744618343825,0.011842,84439.0,84436.0,0.00607616]
[1744618344026,0.011842,84439.0,84436.0,0.00612242]
[1744618344786,0.011842,84439.0,84437.0,0.0004228]
[1744618345004,0.011842,84439.0,84436.0,0.00602855]
[1744618345410,0.34,84437.0,84436.0,0.00602855]
[1744618345633,0.46084154,84437.0,84436.0,0.00602855]
[1744618345808,0.60211877,84437.0,84436.0,0.00602855]
[1744618346011,1.01305268,84437.0,84436.0,0.00602855]
[1744618346620,1.13378116,84437.0,84436.0,0.00602855]
[1744618346823,1.01405268,84437.0,84436.0,0.00602855]
[1744618347440,1.025672,84437.0,84436.0,0.00602855]
[1744618347847,1.01405268,84437.0,84436.0,0.00602855]
[1744618348047,0.55489391,84437.0,84436.0,0.00602855]
[1744618348475,0.41093391,84437.0,84436.0,0.00969097]
[1744618348725,0.41193391,84437.0,84436.0,0.00969097]
[1744618348863,0.001,84437.0,84436.0,0.0120595]
[1744618349068,0.75093391,84447.0,84445.0,0.0451]
[1744618349265,0.75093391,84447.0,84445.0,0.234572]
[1744618349470,0.41093391,84457.0,84456.0,0.189447]
[1744618349740,0.14296,84467.0,84456.0,0.189447]
[1744618349741,0.41093391,84466.0,84463.0,0.011839]
[1744618349889,0.42277291,84466.0,84463.0,0.011839]
[1744618350712,0.41093391,84466.0,84463.0,0.011839]
[1744618350955,0.14296,84467.0,84463.0,0.011839]
[1744618350956,0.14296,84467.0,84464.0,0.201268]
[1744618351157,0.0004608,84466.0,84464.0,0.201268]
[1744618351438,0.0004608,84466.0,84465.0,0.00290952]
[1744618351734,0.0014608,84466.0,84465.0,0.00290952]
[1744618352187,0.0004608,84466.0,84465.0,0.00290952]
[1744618352386,0.0014608,84466.0,84465.0,0.09380952]
[1744618352579,0.0024608,84466.0,84465.0,0.09380952]
[1744618352796,0.0014608,84466.0,84465.0,0.09380952]
[1744618353159,0.0024608,84466.0,84465.0,0.09380952]
[1744618353356,0.0014608,84466.0,84465.0,0.09380952]
[1744618353556,0.0004608,84466.0,84465.0,0.09380952]
[1744618353769,0.0014608,84466.0,84465.0,0.09380952]
[1744618354193,0.0004608,84466.0,84465.0,0.09380952]
[1744618354753,0.0014608,84466.0,84465.0,0.09380952]
[1744618355041,0.0014608,84466.0,84465.0,0.09617698]
[1744618355416,0.0014608,84466.0,84465.0,0.09380952]
[1744618356068,0.0004608,84466.0,84465.0,0.09380952]
[1744618356479,0.0014608,84466.0,84465.0,0.09380952]
[1744618356889,0.0014608,84466.0,84465.0,0.09480952]
[1744618363516,0.0014608,84466.0,84465.0,0.09431355]
[1744618366557,0.0014608,84466.0,84465.0,0.2175225]
[1744618366991,0.0014608,84466.0,84465.0,0.00341355]
[1744618369600,0.0014608,84466.0,84465.0,0.01081077]
[1744618370405,0.0014608,84466.0,84465.0,0.00341355]
[1744618370806,0.0014608,84466.0,84465.0,0.00307508]
[1744618371012,0.0014608,84466.0,84465.0,0.001]
[1744618374232,0.0014608,84466.0,84465.0,0.00336757]
[1744618374438,0.0014608,84466.0,84465.0,0.01076479]
[1744618375138,0.0014608,84466.0,84465.0,0.00839722]